bitfinex/quotes_ETHUSD_20250404
["timestamp","ask_amount","ask_price","bid_price","bid_amount"]
[1743791761275,0.7945,1809.0,1808.7,5.52877]
[1743791761599,5.52788,1809.1,1808.7,5.52865]
[1743791761776,5.52787,1809.1,1808.7,5.52865]
[1743791761993,11.05574,1809.1,1808.7,5.52862]
[1743791762305,5.52802,1809.0,1808.6,5.52905]
[1743791762511,6.633609,1809.0,1808.5,5.5294]
[1743791762679,6.32261,1809.1,1808.4,12.02121]
[1743791762863,5.52863,1808.8,1808.4,12.02121]
[1743791763464,5.52825,1808.9,1808.5,5.52928]
[1743791764183,5.52825,1808.9,1808.5,11.05853]
[1743791764390,3.0,1809.1,1808.7,5.52868]
[1743791764907,3.0,1809.1,1808.6,5.52905]
[1743791765113,0.32124784,1809.0,1808.6,5.52895]
[1743791765418,0.32124784,1809.0,1808.7,5.52881]
[1743791765573,0.32124784,1809.0,1808.7,11.05749]
[1743791765982,0.32124784,1809.0,1808.8,5.5285]
[1743791766227,0.32124784,1809.0,1808.9,5.52822]
[1743791766571,3.0,1809.2,1808.9,5.52822]
[1743791766771,0.32294575,1809.0,1808.9,5.52822]
[1743791767130,5.52648,1809.5,1809.1,5.52754]
[1743791767303,3.0,1809.5,1809.2,11.0544]
[1743791767618,8.52651,1809.5,1809.1,5.52757]
[1743791767793,3.0,1809.5,1809.2,5.52717]
[1743791768184,3.0,1809.5,1809.2,11.0543]
[1743791768507,5.52557,1809.8,1809.4,5.52668]
[1743791768678,11.05126,1809.8,1809.4,5.52668]
[1743791768886,5.52557,1809.8,1809.4,5.52668]
[1743791769086,5.52557,1809.8,1809.4,5.52651]
[1743791769417,0.552557,1809.7,1809.4,5.52651]
[1743791769595,3.0,1809.6,1809.4,5.52664]
[1743791769808,11.04936,1810.1,1809.4,0.05526394]
[1743791769978,11.04996,1810.0,1809.6,5.52584]
[1743791770186,3.0,1809.9,1809.6,5.52584]
[1743791770381,6.75366788,1810.1,1809.7,5.52553]
[1743791770583,0.7843,1810.0,1809.3,0.8089]
[1743791770810,0.7843,1810.0,1808.9,5.52814]
[1743791770811,3.7843,1809.7,1809.0,11.26291]
[1743791771008,0.55,1809.9,1808.7,30.40053]
[1743791771009,5.52744,1809.2,1808.8,5.52839]
[1743791771202,5.52764,1809.1,1808.7,31.19531]
[1743791771371,5.52795,1809.0,1808.7,31.19515]
[1743791771572,5.52765,1809.1,1808.6,5.52903]
[1743791771771,5.527,1809.3,1808.6,5.52913]
[1743791772071,3.0,1809.1,1808.8,5.52852]
[1743791772274,5.52703,1809.3,1808.9,5.5281]
[1743791772527,5.52703,1809.3,1809.0,5.52789]
[1743791773301,0.792,1809.4,1809.1,5.5276]
[1743791773612,8.52641,1809.5,1809.2,5.52728]
[1743791774122,5.52679,1809.4,1809.1,5.5276]
[1743791774286,5.52648,1809.5,1809.1,5.5276]
[1743791774488,5.52648,1809.5,1809.1,5.52747]
[1743791774688,5.52648,1809.5,1809.1,5.52746]
[1743791774931,5.52685,1809.4,1809.0,5.52769]
[1743791775228,3.0,1809.5,1809.3,5.52697]
[1743791775392,3.0,1809.6,1809.1,6.2827]
[1743791775592,5.82652,1809.5,1809.1,11.81013]
[1743791775788,5.82652,1809.5,1809.1,6.28263]
[1743791775992,5.82652,1809.5,1809.1,11.81007]
[1743791776246,5.82652,1809.5,1809.1,6.28263]
[1743791776422,11.35309,1809.5,1809.1,6.28263]
[1743791776627,5.82652,1809.5,1809.1,6.28263]
[1743791777006,5.82652,1809.5,1809.2,5.52728]
[1743791777199,6.109402,1809.4,1809.0,5.52786]
[1743791777405,5.52718,1809.3,1808.9,17.55358]
[1743791777723,5.52747,1809.2,1808.9,0.7634]
[1743791778403,6.28003,1809.3,1808.9,11.81972]
[1743791778595,6.28003,1809.3,1808.9,11.81962]
[1743791778928,6.9460898,1809.3,1808.9,6.29151]
[1743791779132,6.9460898,1809.3,1808.9,6.29146]
[1743791779321,5.52735,1809.2,1808.9,6.29146]
[1743791780048,0.32585536,1809.1,1808.9,6.29146]
[1743791780413,5.52741,1809.2,1808.9,0.7634]
[1743791780617,0.32585536,1809.0,1808.9,6.29142]
[1743791780817,6.28005,1809.3,1808.9,11.81953]
[1743791781026,0.32585536,1809.0,1808.9,11.81953]
[1743791781205,11.80723,1809.3,1808.9,6.29142]
[1743791781400,0.32585536,1809.0,1808.9,0.7634]
[1743791781600,6.28,1809.3,1808.8,5.52851]
[1743791781847,0.32585536,1809.0,1808.9,5.52822]
[1743791782004,3.0,1809.3,1809.1,5.52751]
[1743791782430,3.0,1809.3,1809.0,6.35549]
[1743791782659,5.52733,1809.2,1809.0,0.8277]
[1743791782937,5.52733,1809.2,1808.8,5.52852]
[1743791782938,5.52733,1809.2,1808.8,6.2792]
[1743791783144,6.838383,1809.1,1808.7,16.79152]
[1743791783345,1.310533,1809.1,1808.7,5.734]
[1743791783648,0.7578,1808.7,1808.2,0.7508]
[1743791783832,5.52975,1808.4,1808.1,5.63056]
[1743791784034,5.52971,1808.5,1808.1,5.63048]
[1743791784238,0.7578,1808.7,1808.1,0.1]
[1743791784414,5.53018,1808.3,1808.1,0.1]
[1743791784809,5.52979,1808.4,1808.1,0.1]
[1743791784810,5.52978,1808.4,1808.1,0.1]
[1743791785046,6.082758,1808.4,1808.1,0.1]
[1743791785230,5.53016,1808.3,1808.1,0.1]
[1743791785857,5.53036,1808.2,1808.1,0.1]
[1743791786153,5.52945,1808.5,1808.1,0.1]
[1743791786310,5.52945,1808.5,1808.1,11.16103]
[1743791786511,9.35328,1808.6,1808.2,5.53033]
[1743791786754,6.35328,1808.6,1808.3,5.52995]
[1743791786963,5.52946,1808.5,1808.2,6.30023]
[1743791787457,6.35328,1808.6,1808.2,11.83043]
[1743791787637,5.52944,1808.5,1808.2,6.3002]
[1743791787840,0.8241,1808.6,1808.1,0.1]
[1743791788146,5.52943,1808.6,1808.2,5.53032]
[1743791788524,5.52959,1808.5,1808.2,5.53036]
[1743791789035,5.52914,1808.6,1808.1,5.63064]
[1743791789036,5.52919,1808.6,1808.1,0.1]
[1743791789216,5.52919,1808.6,1808.2,5.53021]
[1743791789415,11.05791,1808.7,1808.3,5.53003]
[1743791789733,3.0,1808.7,1808.4,5.52964]
[1743791789924,8.52893,1808.7,1808.4,5.52964]
[1743791790126,8.52893,1808.7,1808.3,6.34249]
[1743791790127,5.52917,1808.6,1808.3,6.34249]
[1743791790440,5.52917,1808.6,1808.3,0.8125]
[1743791790643,11.05848,1808.6,1808.3,0.8125]
[1743791790841,5.52969,1808.5,1808.1,5.63051]
[1743791791019,5.52969,1808.5,1808.1,6.42341]
[1743791791220,5.52992,1808.4,1808.1,0.8929]
[1743791791446,5.53008,1808.3,1808.1,0.8929]
[1743791791657,5.53008,1808.3,1808.1,0.1]
[1743791792115,11.05986,1808.4,1808.1,0.1]
[1743791792315,5.53012,1808.3,1808.1,0.1]
[1743791792552,5.53008,1808.3,1808.1,0.1]
[1743791792754,6.083088,1808.3,1808.1,0.1]
[1743791793028,3.553008,1808.3,1808.1,0.1]
[1743791793212,9.083128,1808.3,1808.1,0.1]
[1743791793442,14.613378,1808.3,1808.1,0.1]
[1743791794127,5.53036,1808.2,1808.1,0.1]
[1743791794515,9.32186,1808.2,1808.1,0.1]
[1743791794714,9.87186,1808.2,1808.1,0.1]
[1743791795042,10.19068189,1808.2,1808.1,0.1]
[1743791795426,10.19068189,1808.2,1808.1,1e-05]
[1743791795635,14.42881291,1808.2,1808.1,1e-05]
[1743791796154,0.7631,1808.0,1807.1,25.788]
[1743791796351,11.06484,1807.6,1807.2,5.53329]
[1743791796557,5.53285,1807.4,1807.1,31.32169]
[1743791796859,5.53313,1807.3,1807.1,25.788]
[1743791797034,5.53342,1807.2,1807.1,0.1]
[1743791797216,6.61164189,1807.2,1807.1,0.1]
[1743791798029,3.31882189,1807.2,1807.1,0.1]
[1743791798238,8.85224189,1807.2,1807.1,0.1]
[1743791798564,0.31882189,1807.2,1807.1,5.63372]
[1743791798720,5.85224189,1807.2,1807.1,0.1]
[1743791799237,0.31882189,1807.2,1807.1,0.1]
[1743791799629,5.85224189,1807.2,1807.1,0.1]
[1743791800982,0.31882189,1807.2,1807.1,0.1]
[1743791801470,5.85224189,1807.2,1807.1,0.1]
[1743791801672,0.31882189,1807.2,1807.1,0.1]
[1743791802183,8.85224189,1807.2,1807.1,0.1]
[1743791802482,10.18964189,1807.2,1807.1,0.1]
[1743791803175,0.7557,1806.8,1806.1,0.8098]
[1743791803378,5.53576,1806.5,1806.1,6.34658]
[1743791803751,5.53576,1806.5,1806.1,11.88318]
[1743791803959,0.3134398,1806.4,1806.1,11.88318]
[1743791804285,0.3134398,1806.4,1806.2,5.53635]
[1743791804660,5.53558,1806.5,1806.1,8.111278]
[1743791804987,5.5357,1806.5,1806.1,6.34657]
[1743791805301,0.3134398,1806.4,1806.1,6.34657]
[1743791805454,0.3134398,1806.4,1806.1,6.34645]
[1743791805972,0.3134398,1806.3,1806.1,6.34645]
[1743791806173,5.53561,1806.5,1806.1,6.34645]
[1743791806489,0.3134398,1806.4,1806.1,6.34643]
[1743791807089,0.3134398,1806.4,1806.1,6.3464]
[1743791807295,14.07082,1806.6,1806.2,5.53636]
[1743791807588,5.84144861,1806.5,1806.2,5.53636]
[1743791807757,5.84144861,1806.5,1806.1,6.34648]
[1743791807959,5.53648,1806.2,1806.1,0.05]
[1743791808771,3.0,1806.3,1806.1,5.58665]
[1743791808978,0.30586861,1806.2,1806.1,6.35385]
[1743791809181,0.30586861,1806.2,1806.1,0.8172]
[1743791809381,3.0,1806.4,1806.1,0.05]
[1743791809560,11.37780847,1806.3,1806.1,0.05]
[1743791809767,0.30509847,1806.3,1806.1,0.05]
[1743791809956,8.8359,1806.4,1806.1,0.05]
[1743791810301,5.84137847,1806.3,1806.1,0.05]
[1743791810800,5.53648,1806.2,1806.1,0.05]
[1743791811090,6.31338,1806.2,1806.1,0.05]
[1743791811264,9.61823523,1806.2,1806.1,0.05]
[1743791814014,8.84133523,1806.2,1806.1,0.05]
[1743791814588,9.26387745,1806.2,1806.1,0.05]
[1743791815317,8.84133523,1806.2,1806.1,0.05]
[1743791816874,3.30485523,1806.2,1806.1,0.05]
[1743791817079,8.84133523,1806.2,1806.1,0.05]
[1743791818015,0.30485523,1806.2,1806.1,0.05]
[1743791818518,5.84133523,1806.2,1806.1,0.05]
[1743791819482,0.30485523,1806.2,1806.1,0.05]
[1743791820015,0.30485523,1806.2,1806.1,0.8448]
[1743791820516,11.07253,1806.3,1806.1,0.8448]
[1743791820715,5.83659216,1806.2,1806.1,0.05]
[1743791821216,0.30011216,1806.2,1806.1,0.05]
[1743791822531,11.072,1806.4,1806.1,0.05]
[1743791822740,5.53648,1806.2,1806.1,0.05]
[1743791823034,8.53648,1806.2,1806.1,0.05]
[1743791823209,9.61742186,1806.2,1806.1,0.05]
[1743791824003,8.83732186,1806.2,1806.1,0.05]
[1743791824241,3.30084186,1806.2,1806.1,0.05]
[1743791824529,0.30084186,1806.2,1806.1,0.05]
[1743791825535,5.83732186,1806.2,1806.1,0.05]
[1743791827132,14.98450506,1806.2,1806.1,0.05]
[1743791827341,16.34110506,1806.2,1806.1,0.05]
[1743791827639,3.0,1805.8,1805.5,5.53845]
[1743791827804,8.53771,1805.8,1805.5,5.53845]
[1743791828136,0.29999046,1805.7,1805.6,5.53832]
[1743791828336,3.0,1806.0,1805.7,5.53782]
[1743791828502,0.29999046,1805.9,1805.8,5.5376]
[1743791828703,0.29999046,1805.9,1805.7,5.53782]
[1743791828952,0.29999046,1805.9,1805.8,5.53771]
[1743791829767,5.9416732,1806.2,1805.9,5.53736]
[1743791829972,5.9416732,1806.2,1805.7,5.53792]
[1743791829973,0.27499126,1806.1,1805.7,5.53792]
[1743791830266,5.53685,1806.1,1805.6,1.889792]
[1743791830465,0.27438299,1806.0,1805.8,5.53754]
[1743791830764,8.53624,1806.3,1805.9,11.0747]
[1743791831067,0.27474796,1806.2,1806.0,6.35988]
[1743791831564,0.27474796,1806.1,1806.0,0.8229]
[1743791831765,5.5363,1806.3,1806.0,0.8229]
[1743791831957,0.27474796,1806.2,1806.0,6.35998]
[1743791832359,0.27474796,1806.2,1806.0,0.8229]
[1743791832534,5.81134796,1806.2,1806.0,0.8229]
[1743791832735,5.53719,1806.0,1805.8,0.775]
[1743791832981,5.53694,1806.1,1805.8,0.775]
[1743791833273,5.53694,1806.1,1805.8,6.3127]
[1743791833274,0.27547779,1806.0,1805.8,6.3127]
[1743791833627,0.27547779,1806.0,1805.8,6.31261]
[1743791833833,0.27547779,1806.0,1805.8,0.775]
[1743791834067,5.81259779,1806.0,1805.8,0.775]
[1743791834441,0.27547779,1806.0,1805.7,11.07586]
[1743791834841,0.27547779,1806.0,1805.8,5.53756]
[1743791835068,0.27547779,1806.0,1805.8,11.07513]
[1743791835245,5.95556313,1806.2,1805.9,5.53736]
[1743791835572,8.53618,1806.3,1805.9,11.07467]
[1743791835776,8.53618,1806.3,1806.0,0.8116]
[1743791835947,11.07325,1806.2,1805.8,6.31626]
[1743791836276,5.53711,1806.0,1805.8,0.7786]
[1743791836480,11.07387,1806.1,1805.8,0.7786]
[1743791836988,5.5374,1805.9,1805.6,0.7782]
[1743791837294,5.53719,1806.0,1805.7,5.53792]
[1743791837456,6.34133,1806.1,1805.7,5.53787]
[1743791837658,8.53653,1806.2,1805.8,11.07499]
[1743791837862,5.53681,1806.1,1805.8,5.53746]
[1743791838386,8.53653,1806.2,1805.8,5.53746]
[1743791838690,5.53689,1806.1,1805.8,5.53746]
[1743791838877,9.470573,1806.2,1805.9,5.53734]
[1743791839186,9.470573,1806.2,1805.6,0.7782]
[1743791839187,5.53696,1806.1,1805.6,0.7782]
[1743791839481,5.53696,1806.1,1805.8,5.53761]
[1743791839646,3.0,1806.1,1805.9,5.53733]
[1743791839849,3.0,1806.1,1805.9,11.07461]
[1743791840042,0.27418044,1806.0,1805.9,5.53728]
[1743791840288,0.27418044,1806.0,1805.8,11.07523]
[1743791840483,0.27418044,1806.0,1805.9,5.5374]
[1743791840797,0.27418044,1806.0,1805.8,5.53759]
[1743791841088,5.81128044,1806.0,1805.7,5.53795]
[1743791841286,6.69238748,1806.0,1805.6,6.31639]
[1743791841487,6.69238748,1806.0,1805.6,11.8546]
[1743791841697,1.15528748,1806.0,1805.8,5.53742]
[1743791841892,0.27418044,1806.0,1805.8,5.53742]
[1743791843001,0.27418044,1806.0,1805.8,11.07499]
[1743791843210,0.27418044,1806.0,1805.9,5.5374]
[1743791843503,0.27418044,1806.0,1805.9,6.3686]
[1743791844005,5.53588,1806.4,1806.0,11.07362]
[1743791844300,0.27401826,1806.3,1806.1,11.07324]
[1743791844501,0.27401826,1806.3,1806.2,5.53648]
[1743791844686,11.07089,1806.6,1806.2,5.53648]
[1743791844872,0.27474804,1806.3,1806.1,5.53675]
[1743791845064,5.5363,1806.3,1805.9,12.11047]
[1743791845264,0.27474804,1806.2,1806.0,5.53706]
[1743791845575,8.41481689,1806.7,1805.9,6.5732]
[1743791845790,5.53575,1806.5,1805.9,12.11055]
[1743791845976,3.0,1806.5,1806.0,5.53709]
[1743791846309,0.27474804,1806.4,1806.3,6.33743]
[1743791846486,0.27474804,1806.4,1806.3,12.13478977]
[1743791846702,0.40724131,1806.8,1806.3,0.8013]
[1743791846871,5.53541,1806.6,1806.3,0.8013]
[1743791847295,11.07089,1806.6,1806.3,0.8013]
[1743791847505,0.27474804,1806.5,1806.2,5.53633]
[1743791847734,0.27474804,1806.5,1806.3,5.53604]
[1743791848188,0.27474804,1806.5,1806.2,5.53633]
[1743791848392,0.27474804,1806.5,1806.3,5.53594]
[1743791848598,5.53498,1806.7,1806.4,5.53587]
[1743791848796,5.5347,1806.8,1806.4,5.53587]
[1743791848797,0.27730194,1806.6,1806.5,5.53555]
[1743791849018,3.0,1806.9,1806.5,6.52]
[1743791849179,3.0,1806.9,1806.3,0.776]
[1743791849180,5.53576,1806.5,1806.3,0.776]
[1743791849379,5.53627,1806.3,1806.0,5.53699]
[1743791849579,5.53601,1806.4,1806.0,5.53695]
[1743791849893,0.25407421,1806.3,1805.9,6.517]
[1743791850093,11.07342,1806.2,1805.9,6.517]
[1743791850409,0.25407421,1806.1,1805.9,12.0542]
[1743791850609,0.8202,1806.3,1805.9,6.517]
[1743791850808,0.25407421,1806.2,1806.0,5.53696]
[1743791850996,8.53601,1806.4,1806.1,5.53679]
[1743791851316,0.25346427,1806.3,1806.0,5.53696]
[1743791851530,5.53649,1806.2,1805.9,12.0543]
[1743791851737,0.25346427,1806.1,1805.9,12.05428]
[1743791852033,5.53623,1806.3,1805.9,12.05428]
[1743791852034,5.53621,1806.3,1805.9,12.05423]
[1743791852341,5.53621,1806.3,1806.0,5.53705]
[1743791852631,5.53621,1806.3,1805.9,12.05423]
[1743791852793,3.0,1806.4,1806.1,5.53666]
[1743791852993,8.53598,1806.4,1806.1,5.53673]
[1743791853236,3.0,1806.4,1806.1,11.07336]
[1743791853422,3.0,1806.4,1806.1,5.53663]
[1743791853624,3.40612578,1806.4,1806.1,5.53663]
[1743791853821,8.94201578,1806.4,1806.1,5.53663]
[1743791854751,3.40612578,1806.4,1806.1,5.53663]
[1743791854900,0.25346427,1806.3,1806.1,5.53663]
[1743791855104,8.53591,1806.4,1806.1,5.53663]
[1743791855340,0.25346427,1806.3,1806.1,5.53663]
[1743791855631,8.53591,1806.4,1806.1,5.53663]
[1743791855798,0.25346427,1806.2,1806.0,5.53705]
[1743791856000,8.53591,1806.4,1806.0,11.07405]
[1743791856233,5.78964427,1806.3,1806.0,5.537]
[1743791856734,0.25346427,1806.3,1806.1,5.53674]
[1743791856940,0.41414812,1806.4,1805.9,0.776]
[1743791857135,5.78975427,1806.3,1805.9,11.07459]
[1743791857326,11.32622427,1806.3,1805.9,5.53729]
[1743791857529,5.78975427,1806.3,1805.9,11.0746]
[1743791857840,11.32609427,1806.3,1805.9,11.07455]
[1743791858136,5.53666,1806.2,1805.8,5.53755]
[1743791858315,5.53666,1806.2,1805.8,11.07514]
[1743791858511,5.79052427,1806.1,1805.7,12.04806]
[1743791858717,5.53713,1806.0,1805.7,12.048]
[1743791859035,5.53706,1806.1,1805.7,12.04799]
[1743791859240,0.25346427,1805.9,1805.7,12.04805]
[1743791859439,5.53706,1806.1,1805.8,5.5377]
[1743791859750,5.53695,1806.1,1805.7,11.84491]
[1743791859916,5.79056427,1806.0,1805.7,6.30696]
[1743791860258,0.25346427,1806.0,1805.7,6.30696]
[1743791860436,0.25346427,1806.0,1805.8,5.53758]
[1743791860937,0.25346427,1806.0,1805.8,11.07514]
[1743791861135,3.0,1806.3,1806.0,5.53692]
[1743791861334,0.2519596,1806.2,1806.1,5.53665]
[1743791861536,0.2519596,1806.2,1806.0,5.53692]
[1743791862342,0.2519596,1806.2,1806.1,5.53679]
[1743791862513,6.34001,1806.6,1806.1,6.33749]
[1743791862715,6.3393,1806.8,1806.4,5.5356]
[1743791863038,6.3393,1806.8,1806.4,11.07121]
[1743791863216,5.53573,1806.5,1806.2,5.53642]
[1743791863404,5.53573,1806.5,1806.1,1.988141]
[1743791863405,5.53573,1806.5,1806.1,6.33729]
[1743791863605,0.25212226,1806.4,1806.1,6.33729]
[1743791863843,0.25212226,1806.4,1806.2,5.53647]
[1743791864039,0.25212226,1806.4,1806.2,5.53637]
[1743791864241,0.25212226,1806.4,1806.2,6.170077]
[1743791864416,3.0,1806.6,1806.4,5.53585]
[1743791864618,5.78772226,1806.5,1806.1,6.33741]
[1743791864942,5.53599,1806.4,1806.1,6.33741]
[1743791865240,11.85855,1806.5,1806.1,6.33734]
[1743791865444,0.25212226,1806.3,1806.1,6.33734]
[1743791865642,11.85864,1806.5,1806.1,11.87402]
[1743791865820,0.25212226,1806.2,1806.1,6.33734]
[1743791866318,6.3228,1806.5,1806.1,11.87402]
[1743791866547,0.25212226,1806.4,1806.2,5.53622]
[1743791866953,0.25212226,1806.4,1806.1,6.33739]
[1743791867348,6.44557749,1806.4,1806.1,5.53669]
[1743791867549,5.53669,1806.2,1805.9,0.7567]
[1743791867773,5.53669,1806.2,1805.9,6.2941]
[1743791867964,0.25212226,1806.1,1805.9,6.2941]
[1743791868274,5.53624,1806.3,1805.9,11.8314]
[1743791868472,0.25212226,1806.0,1805.9,6.294]
[1743791868649,6.090254,1806.2,1805.9,6.2941]
[1743791868838,0.25212226,1806.0,1805.8,5.53757]
[1743791869038,0.553624,1806.2,1805.9,11.0748]
[1743791869441,0.553624,1806.2,1806.0,5.53709]
[1743791869649,0.553624,1806.2,1805.9,11.0748]
[1743791869892,6.090134,1806.2,1805.9,5.5374]
[1743791870096,0.25212226,1806.1,1805.9,11.07469]
[1743791870269,0.25212226,1806.1,1805.9,5.53729]
[1743791870436,8.94931053,1806.4,1806.1,5.53679]
[1743791870642,0.89493105,1806.3,1806.1,5.53673]
[1743791870841,3.41340053,1806.4,1806.1,6.33628]
[1743791871046,3.0,1806.4,1806.1,6.33636]
[1743791871981,8.53603,1806.4,1806.1,6.33628]
[1743791872301,5.5363,1806.3,1806.0,5.53707]
[1743791872457,5.5363,1806.3,1805.9,6.37024]
[1743791872659,11.62685,1806.2,1805.8,5.53757]
[1743791872879,6.09013,1806.2,1805.8,5.53755]
[1743791873085,5.53706,1806.1,1805.7,6.37107]
[1743791873284,5.53743,1805.9,1805.6,5.53818]
[1743791873759,5.53743,1805.9,1805.6,11.07637]
[1743791873974,5.53723,1806.0,1805.7,5.53789]
[1743791874274,11.85358,1806.1,1805.8,5.53764]
[1743791874602,6.31662,1806.1,1805.7,5.53786]
[1743791874769,11.85364,1806.1,1805.7,5.53786]
[1743791874971,11.07447,1806.0,1805.6,5.53828]
[1743791875267,1.7748818,1806.1,1805.5,30.44661]
[1743791875268,5.53751,1805.9,1805.5,30.44661]
[1743791875468,5.53751,1805.9,1805.5,35.98514]
[1743791875860,11.07508,1805.9,1805.5,35.98514]
[1743791876077,5.53751,1805.9,1805.6,5.53827]
[1743791876594,5.53751,1805.9,1805.6,5.53823]
[1743791876800,5.53715,1806.0,1805.6,11.07639]
[1743791877097,11.07455,1806.0,1805.6,5.53816]
[1743791877302,5.5374,1805.9,1805.6,11.07635]
[1743791877499,5.5374,1805.9,1805.6,5.53816]
[1743791877697,5.94274507,1806.0,1805.6,11.07633]
[1743791877996,0.40559507,1806.0,1805.7,5.53782]
[1743791878301,5.53711,1806.0,1805.7,5.53782]
[1743791878686,11.07446,1806.0,1805.6,9.136653]
[1743791878899,5.53764,1805.9,1805.5,30.44652]
[1743791879103,5.53764,1805.9,1805.6,5.5383]
[1743791879401,11.0752,1805.9,1805.5,30.4465]
[1743791879696,5.53761,1805.9,1805.5,35.98499]
[1743791879872,5.53761,1805.9,1805.6,5.53829]
[1743791880201,6.31659,1806.1,1805.5,30.44648]
[1743791880368,5.53752,1805.9,1805.5,35.98502]
[1743791880568,5.53752,1805.9,1805.6,5.53828]
[1743791880900,5.53744,1805.9,1805.6,5.53822]
[1743791881106,11.07501,1805.9,1805.6,5.53822]
[1743791881268,5.53744,1805.9,1805.5,11.07709]
[1743791881467,5.53744,1805.9,1805.6,5.53831]
[1743791881701,6.58501501,1806.0,1805.6,11.07662]
[1743791882005,0.7798,1806.1,1805.9,5.53731]
[1743791882169,5.53659,1806.2,1805.9,5.53731]
[1743791882910,9.3051,1806.3,1806.0,5.53699]
[1743791883112,14.84149,1806.3,1805.9,11.07459]
[1743791883408,5.5362,1806.3,1806.0,5.53698]
[1743791883587,5.94775489,1806.4,1806.0,11.07392]
[1743791883779,5.94775489,1806.4,1805.8,0.7988]
[1743791883780,0.97477549,1806.4,1805.8,0.7988]
[1743791883982,5.53605,1806.4,1806.0,5.53698]
[1743791884181,5.53605,1806.4,1806.1,5.53662]
[1743791884379,5.53638,1806.3,1805.9,5.53729]
[1743791884661,11.07286,1806.3,1805.9,11.07457]
[1743791884866,5.53655,1806.2,1805.9,5.53728]
[1743791885065,0.25163427,1806.2,1805.9,5.53724]
[1743791885262,1.6303357,1806.2,1805.6,0.8193]
[1743791885502,11.07468,1806.0,1805.6,6.35759]
[1743791885815,0.25236635,1805.9,1805.7,5.53799]
[1743791886407,0.25236635,1805.9,1805.7,5.53791]
[1743791886702,11.0738,1806.1,1805.7,11.07579]
[1743791886882,0.25236635,1805.8,1805.6,6.35749]
[1743791887206,6.50676037,1806.1,1805.7,11.07572]
[1743791887412,0.7999,1806.2,1805.9,5.53739]
[1743791887581,3.40497441,1806.4,1806.1,5.53662]
[1743791887582,5.5359,1806.4,1806.1,5.53662]
[1743791887769,5.53648,1806.2,1805.8,6.5475]
[1743791888318,6.36647,1806.3,1806.0,5.53696]
[1743791888791,3.0,1806.3,1806.1,5.53677]
[1743791889368,3.7967,1806.5,1805.9,5.53736]
[1743791889604,11.07291,1806.3,1805.9,5.53728]
[1743791889810,5.53666,1806.2,1805.8,12.08511]
[1743791890106,5.53624,1806.3,1805.9,11.07451]
[1743791890407,5.53624,1806.3,1806.0,5.53695]
[1743791890575,8.94288772,1806.4,1806.0,5.53694]
[1743791890770,3.0,1806.4,1806.1,11.07345]
[1743791890975,3.0,1806.4,1806.1,5.53668]
[1743791891202,6.33232,1806.5,1806.2,5.53635]
[1743791891576,6.33232,1806.5,1806.1,5.53668]
[1743791891799,11.86815,1806.5,1806.1,11.07333]
[1743791892104,0.7967,1806.5,1806.2,5.53636]
[1743791892303,11.07075,1806.6,1806.2,5.53636]
[1743791892304,5.53531,1806.6,1806.2,11.07268]
[1743791892507,5.53531,1806.6,1806.3,5.53616]
[1743791893007,5.53531,1806.6,1806.3,11.0722]
[1743791893316,6.36118,1806.7,1806.3,6.64326]
[1743791893317,11.07015,1806.7,1806.3,6.64326]
[1743791893475,5.53558,1806.5,1806.2,5.53642]
[1743791893675,5.53526,1806.6,1806.3,5.53616]
[1743791893875,5.53526,1806.6,1806.2,5.53633]
[1743791894100,5.53577,1806.5,1806.1,6.33815]
[1743791894311,6.089347,1806.5,1806.1,6.33813]
[1743791894515,0.553577,1806.5,1806.1,0.8015]
[1743791894699,5.536,1806.4,1806.1,0.8015]
[1743791894888,11.07213,1806.4,1806.1,0.8015]
[1743791895069,5.53618,1806.3,1806.0,5.53687]
[1743791895503,5.536,1806.4,1806.0,11.07381]
[1743791895718,5.53622,1806.3,1806.0,5.53687]
[1743791895893,11.07266,1806.3,1805.9,6.33644]
[1743791896222,5.53622,1806.3,1806.0,5.53697]
[1743791896431,5.53656,1806.2,1805.9,0.7991]
[1743791896655,6.88612042,1806.4,1805.7,0.7713]
[1743791896799,5.53729,1806.0,1805.6,5.53821]
[1743791896993,11.07455,1806.0,1805.7,5.53792]
[1743791897202,11.07455,1806.0,1805.6,11.07643]
[1743791897432,5.53726,1806.0,1805.7,5.53799]
[1743791897740,5.53726,1806.0,1805.6,5.53817]
[1743791898028,5.53745,1805.9,1805.6,5.53817]
[1743791898229,5.53726,1806.0,1805.6,5.53817]
[1743791898643,5.53726,1806.0,1805.5,6.5093]
[1743791898644,5.53679,1806.1,1805.7,5.53792]
[1743791898849,11.07377,1806.1,1805.7,5.53787]
[1743791899306,5.53713,1806.0,1805.7,5.53787]
[1743791899496,11.07381,1806.1,1805.7,5.53787]
[1743791899694,5.53679,1806.1,1805.8,5.53764]
[1743791900032,5.53791,1805.8,1805.5,0.7713]
[1743791900231,5.53746,1805.9,1805.5,0.7713]
[1743791900397,0.2531796,1805.8,1805.5,6.30976]
[1743791900734,0.2531796,1805.8,1805.7,5.53801]
[1743791900932,0.2531796,1805.8,1805.7,6.645635]
[1743791901133,5.5365,1806.2,1805.8,5.53743]
[1743791901302,0.2531796,1805.8,1805.7,11.27601]
[1743791901630,6.36945,1806.3,1805.9,11.07439]
[1743791901833,0.2531796,1806.2,1806.0,5.53709]
[1743791902041,0.2531796,1806.2,1806.1,5.53679]
[1743791902237,5.53531,1806.6,1806.0,6.726347]
[1743791902238,5.53531,1806.6,1806.3,5.53608]